fUST/lending_fUST_20250713
["ID","MTS","AMOUNT","RATE_DAILY","PERIOD"]
[371751872,1752417053712,-160.0,0.00018063,2]
[371751873,1752417053722,-160.0,0.00018063,2]
[371751874,1752417053731,-160.0,0.00018063,2]
[371751875,1752417053741,-160.0,0.00018063,2]
[371751876,1752417053750,-151.0,0.00018063,2]
[371751877,1752417053759,-151.0,0.00018063,2]
[371751878,1752417053769,-2928.1,0.00018071,3]
[371751879,1752417053777,-536.8389108,0.00018073,2]
[371751880,1752417053787,-500.0,0.00018073,2]
[371751881,1752417053796,-501.18861077,0.00018073,2]
[371751882,1752417053806,-500.0,0.00018073,2]
[371751883,1752417053815,-500.0,0.00018073,2]
[371751884,1752417053825,-500.0,0.00018073,2]
[371751885,1752417053835,-500.0,0.00018073,2]
[371751886,1752417053844,-249.01175982,0.00018073,2]
[371751887,1752417053854,-500.0,0.00018073,2]
[371751888,1752417053865,-500.0,0.00018073,2]
[371751889,1752417053878,-500.0,0.00018073,2]
[371751890,1752417053887,-500.0,0.00018073,2]
[371751891,1752417053897,-500.0,0.00018073,2]
[371751892,1752417053907,-370.72957296,0.00018073,2]
[371751893,1752417053917,-500.0,0.00018073,2]
[371751894,1752417053927,-500.0,0.00018073,2]
[371751895,1752417053936,-500.0,0.00018073,2]
[371751896,1752417053949,-618.04136094,0.00018073,2]
[371751897,1752417053959,-500.0,0.00018073,2]
[371751898,1752417053969,-501.69710347,0.00018073,2]
[371751899,1752417053978,-500.0,0.00018073,2]
[371751900,1752417053991,-500.0,0.00018073,2]
[371751901,1752417054000,-503.11993608,0.00018073,2]
[371751902,1752417054010,-500.0,0.00018073,2]
[371751903,1752417054019,-643.63847005,0.00018073,2]
[371751904,1752417054028,-500.0,0.00018073,2]
[371751905,1752417054038,-500.0,0.00018073,2]
[371751906,1752417054048,-618.49287827,0.00018073,2]
[371751907,1752417054059,-160.0,0.00018074,2]
[371751908,1752417054069,-160.0,0.00018074,2]
[371751909,1752417054078,-230.68503973,0.00018074,2]
[371751910,1752417054090,-214.29528141,0.00018074,2]
[371751911,1752417054099,-215.42595214,0.00018074,2]
[371751912,1752417054109,-838.53376533,0.00018079,2]
[371751913,1752417054119,-160.0,0.00018079,2]
[371751914,1752417054128,-460.0,0.00018081,2]
[371751915,1752417054138,-660.78,0.00018081,2]
[371751916,1752417054147,-460.0,0.00018081,2]
[371751917,1752417054156,-897.35,0.00018081,2]
[371751918,1752417054166,-460.0,0.00018081,2]
[371751919,1752417054176,-500.0,0.00018081,2]
[371751920,1752417054185,-3077.37,0.00018081,2]
[371751921,1752417054197,-460.0,0.00018081,2]
[371751922,1752417054207,-485.94,0.00018081,2]
[371751923,1752417054216,-460.0,0.00018081,2]
[371751924,1752417054226,-782.43,0.00018081,2]
[371751925,1752417054235,-1292.91,0.00018081,2]
[371751926,1752417054245,-676.84,0.00018081,2]
[371751927,1752417054255,-460.0,0.00018081,2]
[371751928,1752417054265,-151.0,0.00018082,2]
[371751929,1752417054274,-151.0,0.00018082,2]
[371751930,1752417054284,-151.0,0.00018082,2]
[371751931,1752417054294,-557.4,0.00018082,2]
[371751932,1752417054303,-460.0,0.00018082,2]
[371751933,1752417054313,-460.0,0.00018082,2]
[371751934,1752417054324,-492.81464405,0.00018082,2]
[371751935,1752417054334,-593.79445313,0.00018082,2]
[371751936,1752417054344,-460.0,0.00018082,2]
[371751937,1752417054353,-460.0,0.00018082,2]
[371751938,1752417054364,-460.0,0.00018082,2]
[371751939,1752417054374,-460.0,0.00018082,2]
[371751940,1752417054383,-460.0,0.00018082,2]
[371751941,1752417054393,-466.27,0.00018082,2]
[371751942,1752417054403,-460.0,0.00018082,2]
[371751943,1752417054412,-460.0,0.00018082,2]
[371751944,1752417054422,-581.35,0.00018082,2]
[371751945,1752417054431,-467.42799594,0.00018082,2]
[371751946,1752417054441,-460.0,0.00018082,2]
[371751947,1752417054452,-460.0,0.00018082,2]
[371751948,1752417054462,-460.0,0.00018082,2]
[371751949,1752417054472,-460.0,0.00018082,2]
[371751950,1752417054481,-460.0,0.00018082,2]
[371751951,1752417054491,-648.37,0.00018082,2]
[371751952,1752417054501,-673.61,0.00018082,2]
[371751953,1752417054510,-460.0,0.00018082,2]
[371751954,1752417054520,-460.0,0.00018082,2]
[371751955,1752417054530,-557.7,0.00018082,2]
[371751956,1752417054539,-460.0,0.00018082,2]
[371751957,1752417054549,-451.24,0.00018082,2]
[371751958,1752417054634,-460.0,0.00018082,2]
[371751959,1752417054644,-460.0,0.00018082,2]
[371751960,1752417054654,-460.0,0.00018082,2]
[371751961,1752417054663,-460.0,0.00018082,2]
[371751962,1752417054673,-460.0,0.00018082,2]
[371751963,1752417054683,-460.0,0.00018082,2]
[371751964,1752417054694,-460.0,0.00018082,2]
[371751965,1752417054704,-460.0,0.00018082,2]
[371751966,1752417054714,-576.54,0.00018082,2]
[371751967,1752417054723,-460.0,0.00018082,2]
[371751968,1752417054733,-460.0,0.00018082,2]
[371751969,1752417054743,-460.0,0.00018082,2]
[371751970,1752417054753,-1648.08,0.00018082,2]
[371751971,1752417054763,-460.0,0.00018082,2]
[371751972,1752417054772,-460.0,0.00018082,2]
[371751973,1752417054781,-537.39267293,0.00018082,2]
[371751974,1752417054791,-498.33,0.00018082,2]
[371751975,1752417054800,-460.0,0.00018082,2]
[371751976,1752417054810,-460.0,0.00018082,2]
[371751977,1752417054819,-460.0,0.00018082,2]
[371751978,1752417054828,-460.0,0.00018082,2]
[371751979,1752417054838,-650.21,0.00018082,2]
[371751980,1752417054847,-460.0,0.00018082,2]
[371751981,1752417054856,-460.0,0.00018082,2]
[371751982,1752417054866,-2049.75,0.00018082,2]
[371751983,1752417054879,-460.0,0.00018082,2]
[371751984,1752417054888,-460.0,0.00018082,2]
[371751985,1752417054898,-2391.08,0.00018082,2]
[371751986,1752417054908,-1185.33,0.00018082,2]
[371751987,1752417054918,-460.0,0.00018082,2]
[371751988,1752417054927,-601.35427108,0.00018082,2]
[371751989,1752417054937,-460.0,0.00018082,2]
[371751990,1752417054949,-462.20585541,0.00018082,2]
[371751991,1752417054959,-460.0,0.00018082,2]
[371751992,1752417054968,-460.0,0.00018082,2]
[371751993,1752417054977,-638.03,0.00018082,2]
[371751994,1752417054987,-566.49,0.00018082,2]
[371751995,1752417054997,-460.0,0.00018082,2]
[371751996,1752417055006,-257.65104003,0.00018082,2]
[371751997,1752417055016,-460.0,0.00018082,2]
[371751998,1752417055025,-460.0,0.00018082,2]
[371751999,1752417055035,-566.53,0.00018082,2]
[371752000,1752417055044,-469.79,0.00018082,2]
[371752001,1752417055054,-460.0,0.00018082,2]
[371752002,1752417055063,-460.0,0.00018082,2]
[371752003,1752417055073,-533.19,0.00018082,2]
[371752004,1752417055082,-460.0,0.00018082,2]
[371752005,1752417055091,-1700.96,0.00018082,2]
[371752006,1752417055100,-888.31,0.00018082,2]
[371752007,1752417055110,-460.0,0.00018082,2]
[371752008,1752417055120,-460.0,0.00018082,2]
[371752009,1752417055131,-512.21,0.00018082,2]
[371752010,1752417055141,-460.0,0.00018082,2]
[371752011,1752417055151,-460.0,0.00018082,2]
[371752012,1752417055160,-460.0,0.00018082,2]
[371752013,1752417055170,-380.0,0.00018082,2]
[371752014,1752417055180,-581.54,0.00018082,2]
[371752015,1752417055191,-506.15,0.00018082,2]
[371752016,1752417055202,-2385.39,0.00018082,2]
[371752017,1752417055211,-151.0,0.00018082,2]
[371752018,1752417055221,-460.0,0.00018082,2]
[371752019,1752417055232,-467.12762371,0.00018082,2]
[371752020,1752417055242,-460.0,0.00018082,2]
[371752021,1752417055252,-498.33,0.00018082,2]
[371752022,1752417055262,-460.0,0.00018082,2]
[371752023,1752417055272,-162.39,0.00018082,2]
[371752024,1752417055281,-460.0,0.00018082,2]
[371752025,1752417055291,-460.0,0.00018082,2]
[371752026,1752417055305,-1227.15,0.00018082,2]
[371752027,1752417055323,-964.9,0.00018082,2]
[371752028,1752417055340,-460.0,0.00018082,2]
[371752029,1752417055356,-460.0,0.00018082,2]
[371752030,1752417055372,-460.0,0.00018082,2]
[371752031,1752417055389,-460.0,0.00018082,2]
[371752032,1752417055407,-460.0,0.00018082,2]
[371752033,1752417055423,-177.559413,0.00018124,2]
[371752034,1752417055438,-207.4,0.0001819,2]
[371752035,1752417055457,-177.559413,0.00018205,2]
[371752036,1752417055470,-177.559413,0.00018286,2]
[371752037,1752417055483,-460.0,0.00018355,2]
[371752038,1752417055498,-660.78,0.00018355,2]
[371752039,1752417055514,-460.0,0.00018355,2]
[371752040,1752417055530,-897.35,0.00018355,2]
[371752041,1752417055548,-460.0,0.00018355,2]
[371752042,1752417055560,-500.0,0.00018355,2]
[371752043,1752417055573,-3077.37,0.00018355,2]
[371752044,1752417055591,-517.47,0.00018355,2]
[371752045,1752417055604,-485.94,0.00018355,2]
[371752046,1752417055618,-460.0,0.00018355,2]
[371752047,1752417055631,-1292.91,0.00018355,2]
[371752048,1752417055644,-782.43,0.00018355,2]
[371752049,1752417055657,-676.84,0.00018355,2]
[371752050,1752417055671,-460.0,0.00018355,2]
[371752051,1752417055685,-151.0,0.00018356,2]
[371752052,1752417055700,-557.4,0.00018356,2]
[371752053,1752417055712,-460.0,0.00018356,2]
[371752054,1752417055725,-460.0,0.00018356,2]
[371752055,1752417055738,-460.0,0.00018356,2]
[371752056,1752417055752,-460.0,0.00018356,2]
[371752057,1752417055764,-460.0,0.00018356,2]
[371752058,1752417055778,-315.9,0.00018356,2]
[371752059,1752417055791,-466.27,0.00018356,2]
[371752060,1752417055804,-460.0,0.00018356,2]
[371752061,1752417055816,-460.0,0.00018356,2]
[371752062,1752417055829,-581.35,0.00018356,2]
[371752063,1752417055842,-460.0,0.00018356,2]
[371752064,1752417055855,-460.0,0.00018356,2]
[371752065,1752417055870,-364.60430456,0.00018356,2]
[371752066,1752417055883,-229.27360242,0.00018356,2]
[371752067,1752417055896,-460.0,0.00018356,2]
[371752068,1752417055909,-648.37,0.00018356,2]
[371752069,1752417055922,-673.61,0.00018356,2]
[371752070,1752417055934,-460.0,0.00018356,2]
[371752071,1752417055950,-460.0,0.00018356,2]
[371752072,1752417055963,-557.7,0.00018356,2]
[371752073,1752417055992,-460.0,0.00018356,2]
[371752074,1752417056006,-460.0,0.00018356,2]
[371752075,1752417056021,-460.0,0.00018356,2]
[371752076,1752417056034,-460.0,0.00018356,2]
[371752077,1752417056047,-460.0,0.00018356,2]
[371752078,1752417056060,-460.0,0.00018356,2]
[371752079,1752417056074,-241.39046,0.00018356,2]
[371752080,1752417056087,-241.39046,0.00018356,2]
[371752081,1752417056100,-151.0,0.00018356,2]
[371752082,1752417056113,-460.0,0.00018356,2]
[371752083,1752417056126,-460.0,0.00018356,2]
[371752084,1752417056140,-460.0,0.00018356,2]
[371752085,1752417056153,-576.54,0.00018356,2]
[371752086,1752417056166,-460.0,0.00018356,2]
[371752087,1752417056180,-460.0,0.00018356,2]
[371752088,1752417056192,-1648.08,0.00018356,2]
[371752089,1752417056209,-460.0,0.00018356,2]
[371752090,1752417056223,-498.33,0.00018356,2]
[371752091,1752417056232,-460.0,0.00018356,2]
[371752092,1752417056242,-460.0,0.00018356,2]
[371752093,1752417056252,-460.0,0.00018356,2]
[371752094,1752417056394,-460.0,0.00018356,2]
[371752095,1752417056405,-650.21,0.00018356,2]
[371752096,1752417056416,-460.0,0.00018356,2]
[371752097,1752417056426,-372.62124726,0.00018356,2]
[371752098,1752417056436,-2049.75,0.00018356,2]
[371752099,1752417056448,-460.0,0.00018356,2]
[371752100,1752417056458,-2391.08,0.00018356,2]
[371752101,1752417056468,-1185.33,0.00018356,2]
[371752102,1752417056478,-460.0,0.00018356,2]
[371752103,1752417056488,-460.0,0.00018356,2]
[371752104,1752417056498,-460.0,0.00018356,2]
[371752105,1752417056507,-460.0,0.00018356,2]
[371752106,1752417056520,-638.03,0.00018356,2]
[371752107,1752417056530,-566.49,0.00018356,2]
[371752108,1752417056540,-460.0,0.00018356,2]
[371752109,1752417056550,-460.0,0.00018356,2]
[371752110,1752417056559,-460.0,0.00018356,2]
[371752111,1752417056568,-566.53,0.00018356,2]
[371752112,1752417056578,-469.79,0.00018356,2]
[371752113,1752417056587,-460.0,0.00018356,2]
[371752114,1752417056597,-588.44,0.00018356,2]
[371752115,1752417056606,-533.19,0.00018356,2]
[371752116,1752417056615,-460.0,0.00018356,2]
[371752117,1752417056625,-1700.96,0.00018356,2]
[371752118,1752417056635,-888.31,0.00018356,2]
[371752119,1752417056644,-460.0,0.00018356,2]
[371752120,1752417056654,-350.72989772,0.00018356,2]
[371752121,1752417056663,-512.21,0.00018356,2]
[371752122,1752417056673,-460.0,0.00018356,2]
[371752123,1752417056683,-460.0,0.00018356,2]
[371752124,1752417056692,-460.0,0.00018356,2]
[371752125,1752417056704,-506.15,0.00018356,2]
[371752126,1752417056714,-581.54,0.00018356,2]
[371752127,1752417056724,-2385.39,0.00018356,2]
[371752128,1752417056733,-460.0,0.00018356,2]
[371752129,1752417056743,-460.0,0.00018356,2]
[371752130,1752417056753,-498.33,0.00018356,2]
[371752131,1752417056762,-463.15584125,0.00018356,2]
[371752132,1752417056772,-460.0,0.00018356,2]
[371752133,1752417056782,-460.0,0.00018356,2]
[371752134,1752417056793,-1227.15,0.00018356,2]
[371752135,1752417056803,-964.9,0.00018356,2]
[371752136,1752417056813,-460.0,0.00018356,2]
[371752137,1752417056822,-460.0,0.00018356,2]
[371752138,1752417056833,-460.0,0.00018356,2]
[371752139,1752417056843,-460.0,0.00018356,2]
[371752140,1752417056854,-151.450001,0.00018356,2]
[371752141,1752417056865,-460.0,0.00018356,2]
[371752142,1752417056880,-177.559413,0.00018367,2]
[371752143,1752417056890,-151.848374,0.00018406,2]
[371752144,1752417056900,-2000.0,0.00018416,2]
[371752145,1752417056911,-740.24514543,0.00018416,2]
[371752146,1752417056920,-2000.0,0.00018416,2]
[371752147,1752417056930,-1476.77120229,0.00018416,2]
[371752148,1752417056940,-315.32243225,0.00018416,2]
[371752149,1752417056951,-260.0,0.00018421,2]
[371752150,1752417056961,-177.559413,0.00018449,2]
[371752151,1752417056971,-500.0,0.00018482,2]
[371752152,1752417056979,-177.559413,0.0001853,2]
[371752153,1752417056989,-170.11988252,0.0001853,2]
[371752154,1752417056999,-3764.42934704,0.00018544,2]
[371752155,1752417057008,-505.49074743,0.00018621,2]
[371752156,1752417057018,-503.07991612,0.00018621,2]
[371752157,1752417057028,-590.40244496,0.00018621,2]
[371752158,1752417057037,-1000.0,0.00018621,2]
[371752159,1752417057047,-502.3432928,0.00018621,2]
[371752160,1752417057056,-1000.0,0.00018621,2]
[371752161,1752417057066,-500.0,0.00018621,2]
[371752162,1752417057075,-500.0,0.00018621,2]
[371752163,1752417057085,-200.4,0.00018621,2]
[371752164,1752417057094,-500.0,0.00018621,2]
[371752165,1752417057104,-1000.0,0.00018621,2]
[371752166,1752417057113,-1005.46469037,0.00018621,2]
[371752167,1752417057123,-1000.0,0.00018621,2]
[371752168,1752417057132,-500.52366226,0.00018621,2]
[371752169,1752417057141,-1002.07498449,0.00018621,2]
[371752170,1752417057151,-500.0,0.00018621,2]
[371752171,1752417057160,-460.0,0.00018629,2]
[371752172,1752417057170,-660.78,0.00018629,2]
[371752173,1752417057179,-460.0,0.00018629,2]
[371752174,1752417057189,-897.35,0.00018629,2]
[371752175,1752417057201,-460.0,0.00018629,2]
[371752176,1752417057210,-500.0,0.00018629,2]
[371752177,1752417057219,-3077.37,0.00018629,2]
[371752178,1752417057229,-485.94,0.00018629,2]
[371752179,1752417057238,-460.0,0.00018629,2]
[371752180,1752417057247,-782.43,0.00018629,2]
[371752181,1752417057257,-1292.91,0.00018629,2]
[371752182,1752417057267,-676.84,0.00018629,2]
[371752183,1752417057276,-460.0,0.00018629,2]
[371752184,1752417057286,-557.4,0.0001863,2]
[371752185,1752417057295,-460.0,0.0001863,2]
[371752186,1752417057305,-460.0,0.0001863,2]
[371752187,1752417057315,-460.0,0.0001863,2]
[371752188,1752417057325,-460.0,0.0001863,2]
[371752189,1752417057335,-466.27,0.0001863,2]
[371752190,1752417057344,-460.0,0.0001863,2]
[371752191,1752417057353,-460.0,0.0001863,2]
[371752192,1752417057363,-581.35,0.0001863,2]
[371752193,1752417057372,-460.0,0.0001863,2]
[371752194,1752417057382,-648.37,0.0001863,2]
[371752195,1752417057391,-673.61,0.0001863,2]
[371752196,1752417057401,-460.0,0.0001863,2]
[371752197,1752417057412,-598.81290879,0.0001863,2]
[371752198,1752417057422,-557.7,0.0001863,2]
[371752199,1752417057432,-151.0,0.0001863,2]
[371752200,1752417057442,-460.0,0.0001863,2]
[371752201,1752417057454,-460.0,0.0001863,2]
[371752202,1752417057463,-460.0,0.0001863,2]
[371752203,1752417057474,-460.0,0.0001863,2]
[371752204,1752417057483,-460.0,0.0001863,2]
[371752205,1752417057493,-460.0,0.0001863,2]
[371752206,1752417057503,-460.0,0.0001863,2]
[371752207,1752417057513,-460.0,0.0001863,2]
[371752208,1752417057522,-576.54,0.0001863,2]
[371752209,1752417057532,-183.33,0.0001863,2]
[371752210,1752417057541,-460.0,0.0001863,2]
[371752211,1752417057551,-1648.08,0.0001863,2]
[371752212,1752417057560,-460.0,0.0001863,2]
[371752213,1752417057570,-498.33,0.0001863,2]
[371752214,1752417057579,-460.0,0.0001863,2]
[371752215,1752417057589,-460.0,0.0001863,2]
[371752216,1752417057598,-460.0,0.0001863,2]
[371752217,1752417057608,-460.0,0.0001863,2]
[371752218,1752417057617,-650.21,0.0001863,2]
[371752219,1752417057627,-460.0,0.0001863,2]
[371752220,1752417057636,-2049.75,0.0001863,2]
[371752221,1752417057646,-460.0,0.0001863,2]
[371752222,1752417057655,-2391.08,0.0001863,2]
[371752223,1752417057665,-1185.33,0.0001863,2]
[371752224,1752417057674,-460.0,0.0001863,2]
[371752225,1752417057684,-460.0,0.0001863,2]
[371752226,1752417057695,-460.0,0.0001863,2]
[371752227,1752417057704,-638.03,0.0001863,2]
[371752228,1752417057714,-566.49,0.0001863,2]
[371752229,1752417057724,-460.0,0.0001863,2]
[371752230,1752417057733,-460.0,0.0001863,2]
[371752231,1752417057742,-460.0,0.0001863,2]
[371752232,1752417057752,-460.0,0.0001863,2]
[371752233,1752417057761,-566.53,0.0001863,2]
[371752234,1752417057771,-469.79,0.0001863,2]
[371752235,1752417057780,-460.0,0.0001863,2]
[371752236,1752417057790,-533.19,0.0001863,2]
[371752237,1752417057800,-460.0,0.0001863,2]
[371752238,1752417057809,-1700.96,0.0001863,2]
[371752239,1752417057819,-888.31,0.0001863,2]
[371752240,1752417057828,-460.0,0.0001863,2]
[371752241,1752417057838,-512.21,0.0001863,2]
[371752242,1752417057848,-451.22299151,0.0001863,2]
[371752243,1752417057857,-460.0,0.0001863,2]
[371752244,1752417057868,-460.0,0.0001863,2]
[371752245,1752417057879,-506.15,0.0001863,2]
[371752246,1752417057889,-581.54,0.0001863,2]
[371752247,1752417057899,-2385.39,0.0001863,2]
[371752248,1752417057909,-560.77393681,0.0001863,2]
[371752249,1752417057919,-460.0,0.0001863,2]
[371752250,1752417057928,-498.33,0.0001863,2]
[371752251,1752417057938,-460.0,0.0001863,2]
[371752252,1752417057950,-460.0,0.0001863,2]
[371752253,1752417057960,-1227.15,0.0001863,2]
[371752254,1752417057970,-964.9,0.0001863,2]
[371752255,1752417057979,-460.0,0.0001863,2]
[371752256,1752417057988,-460.0,0.0001863,2]
[371752257,1752417057998,-460.0,0.0001863,2]
[371752258,1752417058008,-460.0,0.0001863,2]
[371752259,1752417058018,-460.0,0.0001863,2]
[371752260,1752417058027,-151.0,0.00018794,2]
[371752261,1752417058037,-151.0,0.00018794,2]
[371752262,1752417058046,-151.0,0.00018794,2]
[371752263,1752417058056,-460.0,0.00018903,2]
[371752264,1752417058065,-660.78,0.00018903,2]
[371752265,1752417058075,-460.0,0.00018903,2]
[371752266,1752417058084,-897.35,0.00018903,2]
[371752267,1752417058095,-460.0,0.00018903,2]
[371752268,1752417058104,-500.0,0.00018903,2]
[371752269,1752417058113,-3077.37,0.00018903,2]
[371752270,1752417058123,-485.94,0.00018903,2]
[371752271,1752417058132,-460.0,0.00018903,2]
[371752272,1752417058142,-782.43,0.00018903,2]
[371752273,1752417058151,-1292.91,0.00018903,2]
[371752274,1752417058160,-676.84,0.00018903,2]
[371752275,1752417058170,-460.0,0.00018903,2]
[371752276,1752417058180,-557.4,0.00018904,2]
[371752277,1752417058189,-460.0,0.00018904,2]
[371752278,1752417058200,-460.0,0.00018904,2]
[371752279,1752417058210,-460.0,0.00018904,2]
[371752280,1752417058220,-460.0,0.00018904,2]
[371752281,1752417058230,-466.27,0.00018904,2]
[371752282,1752417058239,-460.0,0.00018904,2]
[371752283,1752417058253,-460.0,0.00018904,2]
[371752284,1752417058263,-581.35,0.00018904,2]
[371752285,1752417058272,-192.7,0.00018904,2]
[371752286,1752417058281,-648.37,0.00018904,2]
[371752287,1752417058291,-673.61,0.00018904,2]
[371752288,1752417058300,-460.0,0.00018904,2]
[371752289,1752417058309,-557.7,0.00018904,2]
[371752290,1752417058319,-460.0,0.00018904,2]
[371752291,1752417058329,-460.0,0.00018904,2]
[371752292,1752417058338,-460.0,0.00018904,2]
[371752293,1752417058348,-460.0,0.00018904,2]
[371752294,1752417058357,-525.00570465,0.00018904,2]
[371752295,1752417058367,-460.0,0.00018904,2]
[371752296,1752417058376,-460.0,0.00018904,2]
[371752297,1752417058386,-576.54,0.00018904,2]
[371752298,1752417058395,-460.0,0.00018904,2]
[371752299,1752417058405,-1648.08,0.00018904,2]
[371752300,1752417058415,-467.65174943,0.00018904,2]
[371752301,1752417058512,-498.33,0.00018904,2]
[371752302,1752417058522,-460.0,0.00018904,2]
[371752303,1752417058532,-460.0,0.00018904,2]
[371752304,1752417058542,-460.0,0.00018904,2]
[371752305,1752417058551,-442.34809504,0.00018904,2]
[371752306,1752417058560,-650.21,0.00018904,2]
[371752307,1752417058570,-460.0,0.00018904,2]
[371752308,1752417058580,-2049.75,0.00018904,2]
[371752309,1752417058589,-2391.08,0.00018904,2]
[371752310,1752417058598,-1185.33,0.00018904,2]
[371752311,1752417058607,-460.0,0.00018904,2]
[371752312,1752417058617,-460.0,0.00018904,2]
[371752313,1752417058626,-460.0,0.00018904,2]
[371752314,1752417058635,-638.03,0.00018904,2]
[371752315,1752417058645,-566.49,0.00018904,2]
[371752316,1752417058654,-460.0,0.00018904,2]
[371752317,1752417058664,-460.0,0.00018904,2]
[371752318,1752417058673,-460.0,0.00018904,2]
[371752319,1752417058683,-460.0,0.00018904,2]
[371752320,1752417058692,-566.53,0.00018904,2]
[371752321,1752417058703,-469.79,0.00018904,2]
[371752322,1752417058712,-460.0,0.00018904,2]
[371752323,1752417058722,-533.19,0.00018904,2]
[371752324,1752417058731,-460.0,0.00018904,2]
[371752325,1752417058741,-1700.96,0.00018904,2]
[371752326,1752417058751,-888.31,0.00018904,2]
[371752327,1752417058760,-460.0,0.00018904,2]
[371752328,1752417058770,-512.21,0.00018904,2]
[371752329,1752417058779,-460.0,0.00018904,2]
[371752330,1752417058789,-460.0,0.00018904,2]
[371752331,1752417058798,-506.15,0.00018904,2]
[371752332,1752417058808,-581.54,0.00018904,2]
[371752333,1752417058818,-2385.39,0.00018904,2]
[371752334,1752417058827,-460.0,0.00018904,2]
[371752335,1752417058836,-498.33,0.00018904,2]
[371752336,1752417058846,-460.0,0.00018904,2]
[371752337,1752417058856,-460.0,0.00018904,2]
[371752338,1752417058870,-1227.15,0.00018904,2]
[371752339,1752417058879,-964.9,0.00018904,2]
[371752340,1752417058892,-460.0,0.00018904,2]
[371752341,1752417058907,-460.0,0.00018904,2]
[371752342,1752417058918,-460.0,0.00018904,2]
[371752343,1752417058929,-460.0,0.00018904,2]
[371752344,1752417058942,-460.0,0.00018904,2]
[371752345,1752417058954,-1659.98685287,0.00018945,2]
[371752346,1752417058964,-2500.0,0.00018964,2]
[371752347,1752417058975,-306.48796736,0.00018964,2]
[371752348,1752417058985,-360.0,0.00018969,2]
[371752349,1752417058994,-890.37013431,0.0001898,2]
[371752350,1752417059003,-500.0,0.00019168,2]
[371752351,1752417059013,-500.0,0.00019168,2]
[371752352,1752417059023,-460.0,0.00019177,2]
[371752353,1752417059033,-660.78,0.00019177,2]
[371752354,1752417059043,-460.0,0.00019177,2]
[371752355,1752417059052,-897.35,0.00019177,2]
[371752356,1752417059061,-281.19887932,0.00019177,2]
[371752357,1752417059071,-421.12058167,0.00019177,2]
[371752358,1752417059080,-3077.37,0.00019177,2]
[371752359,1752417059089,-485.94,0.00019177,2]
[371752360,1752417059098,-460.0,0.00019177,2]
[371752361,1752417059108,-782.43,0.00019177,2]
[371752362,1752417059118,-1292.91,0.00019177,2]
[371752363,1752417059127,-676.84,0.00019177,2]
[371752364,1752417059137,-460.0,0.00019177,2]
[371752365,1752417059147,-151.0,0.00019178,2]
[371752366,1752417059155,-557.4,0.00019178,2]
[371752367,1752417059165,-460.0,0.00019178,2]
[371752368,1752417059174,-257.35,0.00019178,2]
[371752369,1752417059183,-460.0,0.00019178,2]
[371752370,1752417059193,-460.0,0.00019178,2]
[371752371,1752417059204,-466.27,0.00019178,2]